bitfinex-derivatives/quotes_SOLF0:USTF0_20250518
["timestamp","ask_amount","ask_price","bid_price","bid_amount"]
[1747584317005,5.674,176.18,176.14,5.6753]
[1747584317197,67.04,176.21,176.1,1.8731]
[1747584317703,5.675,176.16,176.12,5.6757]
[1747584318104,5.675,176.16,176.11,7.4957]
[1747584318411,67.18,176.17,176.1,1.8731]
[1747584318702,5.6759,176.13,176.1,1.8731]
[1747584318902,67.04,176.16,176.09,5.14704638]
[1747584319299,5.6761,176.12,176.09,5.14704638]
[1747584319493,67.04,176.16,176.09,5.14704638]
[1747584319697,506.67104461,176.24,176.07,1.8951]
[1747584319905,5.6746,176.17,176.07,1.8951]
[1747584320104,67.18,176.18,176.08,67.02]
[1747584320304,5.6746,176.17,176.08,67.02]
[1747584320604,67.18,176.18,176.09,4.73157654]
[1747584321200,5.6752,176.15,176.09,4.73157654]
[1747584321499,67.18,176.18,176.09,4.73157654]
[1747584321699,5.6756,176.14,176.09,4.73157654]
[1747584322108,67.18,176.18,176.09,4.73157654]
[1747584322298,67.18,176.18,176.1,4.73157654]
[1747584322498,67.18,176.18,176.11,5.6763]
[1747584323305,5.6752,176.15,176.11,5.6763]
[1747584323710,67.18,176.18,176.11,5.6763]
[1747584324096,67.18,176.18,176.1,5.6766]
[1747584324308,5.6755,176.14,176.1,5.6766]
[1747584324808,67.18,176.18,176.1,5.6766]
[1747584325407,490.4,176.24,176.1,67.0]
[1747584325607,5.673,176.22,176.1,67.0]
[1747584325808,67.0,176.23,176.1,67.0]
[1747584326198,10.47722477,176.3,176.13,16.27104461]
[1747584326404,134.0,176.29,176.14,70.7741]
[1747584326604,134.0,176.29,176.15,67.0]
[1747584326910,134.0,176.29,176.15,73.61141038]
[1747584327506,134.0,176.29,176.17,16.27104461]
[1747584327507,67.0,176.28,176.17,16.27104461]
[1747584327908,67.0,176.29,176.17,16.27104461]
[1747584328309,133.98,176.29,176.17,16.27104461]
[1747584328810,133.98,176.29,176.18,4.73051038]
[1747584329914,5.6719,176.25,176.21,5.6728]
[1747584331018,5.6715,176.27,176.22,5.6727]
[1747584331311,133.98,176.29,176.15,7.02794638]
[1747584331617,133.94,176.28,176.16,4.73804626]
[1747584332115,66.98,176.28,176.16,4.73804626]
[1747584332317,66.98,176.32,176.16,4.73804626]
[1747584332510,66.94,176.31,176.17,71.67804626]
[1747584333211,66.94,176.31,176.28,5.6707]
[1747584333607,490.54,176.33,176.22,133.92]
[1747584333807,5.6693,176.33,176.23,5.6557]
[1747584334017,66.94,176.34,176.23,5.6557]
[1747584334207,66.98,176.35,176.23,5.6557]
[1747584334413,5.6696,176.32,176.28,5.6706]
[1747584334808,66.92,176.34,176.23,10.39374626]
[1747584335519,5.6698,176.32,176.27,5.6709]
[1747584335817,5.6698,176.32,176.24,4.73804626]
[1747584336516,5.6698,176.32,176.28,5.6705]
[1747584337218,5.6693,176.33,176.24,4.73804626]
[1747584337414,5.6693,176.33,176.25,4.73804626]
[1747584337610,66.9,176.34,176.25,4.73804626]
[1747584338214,5.6696,176.32,176.28,5.6706]
[1747584338416,66.9,176.34,176.25,4.73804626]
[1747584338712,5.6693,176.33,176.29,5.6703]
[1747584340015,5.6696,176.32,176.28,5.6707]
[1747584340311,66.88,176.35,176.24,4.72663369]
[1747584341216,66.88,176.35,176.23,5.6723]
[1747584341516,66.88,176.35,176.22,66.98]
[1747584341718,5.6708,176.29,176.24,5.6721]
[1747584342115,5.6708,176.29,176.25,5.6717]
[1747584342419,5.6709,176.28,176.22,66.98]
[1747584342720,66.84,176.3,176.22,66.98]
[1747584343018,5.6715,176.27,176.22,66.98]
[1747584343415,66.84,176.3,176.22,66.98]
[1747584343613,66.84,176.3,176.18,3.8064]
[1747584343812,66.84,176.3,176.16,66.96]
[1747584344913,66.84,176.3,176.2,5.6732]
[1747584345215,66.84,176.3,176.16,66.96]
[1747584345410,557.1,176.3,176.14,71.96704638]
[1747584345717,557.1,176.3,176.14,5.14704638]
[1747584346224,557.1,176.3,176.16,5.6746]
[1747584346820,5.6734,176.2,176.16,5.6746]
[1747584347120,133.78,176.22,176.16,5.6746]
[1747584347617,133.78,176.22,176.15,5.6749]
[1747584347819,5.6736,176.2,176.15,5.6749]
[1747584348218,5.6736,176.2,176.16,5.6747]
[1747584348820,5.6731,176.21,176.16,5.6747]
[1747584349021,5.6731,176.21,176.17,5.6743]
[1747584349321,5.6731,176.21,176.13,1.8363]
[1747584349720,5.6731,176.21,176.16,5.6744]
[1747584350021,5.6735,176.2,176.16,5.6744]
[1747584350222,133.78,176.22,176.13,1.8363]
[1747584350520,5.674,176.19,176.13,1.8363]
[1747584350720,133.78,176.22,176.13,5.6756]
[1747584350923,133.78,176.22,176.12,66.96]
[1747584351123,133.78,176.22,176.13,5.6754]
[1747584351623,133.78,176.22,176.09,66.8]
[1747584352121,5.6743,176.18,176.09,66.8]
[1747584352322,133.78,176.22,176.13,5.6754]
[1747584352523,133.78,176.22,176.08,137.6454]
[1747584352823,133.78,176.22,176.12,5.6758]
[1747584353015,133.78,176.22,176.08,137.6454]
[1747584353211,5.6749,176.16,176.08,137.6454]
[1747584353416,5.6749,176.16,176.11,5.6762]
[1747584353724,5.6751,176.15,176.09,4.72566872]
[1747584353928,5.6751,176.15,176.1,5.6764]
[1747584354421,5.6751,176.15,176.09,4.72566872]
[1747584354624,5.6751,176.15,176.1,5.6766]
[1747584354924,5.6751,176.15,176.08,70.8654]
[1747584355123,5.6747,176.16,176.11,5.676]
[1747584355422,133.76,176.17,176.08,70.8654]
[1747584355721,133.76,176.17,176.09,5.6769]
[1747584356221,133.76,176.17,176.08,72.6572]
[1747584356424,133.76,176.17,176.08,66.98]
[1747584356724,5.6747,176.16,176.12,5.6759]
[1747584357625,16.27104461,176.27,176.08,66.98]
[1747584357814,133.52,176.26,176.08,66.98]
[1747584358019,66.76,176.25,176.09,66.76]
[1747584358620,5.6752,176.15,176.11,5.6762]
[1747584358822,133.52,176.17,176.09,66.76]
[1747584359226,5.6755,176.14,176.1,5.6764]
[1747584359422,133.52,176.17,176.08,66.98]
[1747584360018,133.52,176.17,176.03,68.6413]
[1747584360221,133.52,176.17,176.06,1.8886]
[1747584360424,5.6751,176.15,176.06,68.6686]
[1747584360622,133.52,176.17,176.06,68.6686]
[1747584360826,5.6741,176.18,176.14,5.6751]
[1747584361319,490.52,176.19,176.09,66.74]
[1747584361518,490.52,176.19,176.14,5.6751]
[1747584361720,133.52,176.2,176.11,66.78]
[1747584362030,66.78,176.2,176.12,1.7994]
[1747584362625,5.6743,176.18,176.12,1.7994]
[1747584362828,66.78,176.2,176.12,1.7994]
[1747584363223,5.6747,176.16,176.13,5.6754]
[1747584363530,5.6747,176.16,176.12,1.7994]
[1747584363732,66.72,176.17,176.11,5.6762]
[1747584364427,66.72,176.17,176.07,135.4681]
[1747584364923,5.6737,176.2,176.16,5.6747]
[1747584365228,66.7,176.2,176.16,5.6747]
[1747584365529,5.6735,176.2,176.17,5.6744]
[1747584365926,5.6738,176.19,176.15,5.6747]
[1747584366135,66.78,176.21,176.12,66.78]
[1747584366329,66.78,176.21,176.08,138.19424789]
[1747584366529,66.78,176.21,176.13,5.6756]
[1747584367025,5.6744,176.17,176.08,138.19424789]
[1747584367231,66.78,176.21,176.08,133.48]
[1747584367732,5.6743,176.18,176.08,133.48]
[1747584367940,66.78,176.21,176.08,133.48]
[1747584368124,66.78,176.21,176.09,4.71274599]
[1747584369933,72.4533,176.21,176.09,4.71274599]
[1747584370135,66.78,176.21,176.09,4.71274599]
[1747584370337,66.78,176.21,176.1,4.71274599]
[1747584370929,66.78,176.21,176.11,1.9128]
[1747584371340,5.6735,176.2,176.16,5.6746]
[1747584371530,66.78,176.21,176.11,1.9128]
[1747584372540,66.78,176.21,176.1,4.71274599]
[1747584373533,66.78,176.21,176.06,1.8886]
[1747584373727,83.05104461,176.21,176.06,1.8886]
[1747584373933,5.6762,176.12,176.07,5.6774]
[1747584374239,133.42,176.13,176.04,68.7115]
[1747584374537,5.6767,176.1,176.06,5.6779]
[1747584375141,5.6767,176.1,176.02,71.78704638]
[1747584375142,133.42,176.13,176.02,5.14704638]
[1747584375640,5.6772,176.09,176.04,5.6783]
[1747584375841,5.6772,176.09,176.02,5.14704638]
[1747584376241,5.6772,176.09,176.04,5.6785]
[1747584376441,5.6772,176.09,176.02,5.14704638]
[1747584376842,5.6772,176.09,176.04,5.6785]
[1747584377036,5.6772,176.09,176.02,5.14704638]
[1747584377840,5.6767,176.1,176.02,5.14704638]
[1747584378032,133.42,176.13,176.05,5.678]
[1747584378429,133.42,176.13,176.01,3.7202]
[1747584379043,5.6763,176.11,176.01,3.7202]
[1747584379237,133.42,176.13,176.07,5.6774]
[1747584379438,133.42,176.13,176.01,3.7202]
[1747584380141,5.6763,176.11,176.01,3.7202]
[1747584380342,133.42,176.13,176.01,3.7202]
[1747584380857,5.6765,176.11,176.02,66.6]
[1747584381140,5.6765,176.11,176.07,5.6773]
[1747584381337,5.6766,176.1,176.07,5.6773]
[1747584381545,133.42,176.13,176.07,5.6773]
[1747584381738,133.42,176.13,176.08,5.6773]
[1747584382135,5.6761,176.12,176.02,66.6]
[1747584382336,5.6761,176.12,176.08,5.677]
[1747584382540,133.42,176.13,176.02,66.6]
[1747584382736,133.42,176.13,176.05,5.678]
[1747584383246,5.6768,176.1,176.06,5.6779]
[1747584383543,133.42,176.13,176.02,66.6]
[1747584383941,133.42,176.13,176.04,5.6785]
[1747584384142,133.42,176.13,176.01,3.7202]
[1747584385147,5.6772,176.09,176.01,3.7202]
[1747584385341,133.42,176.13,176.01,3.7202]
[1747584385748,133.42,176.13,175.96,71.70704638]
[1747584385946,149.69104461,176.13,175.96,140.16164638]
[1747584386146,149.69104461,176.13,175.96,73.60164638]
[1747584387442,5.6788,176.04,175.96,73.60164638]
[1747584387850,133.12,176.05,175.96,73.60164638]
[1747584388055,5.6791,176.03,175.98,5.6804]
[1747584388958,133.12,176.05,175.99,5.6801]
[1747584389149,133.12,176.05,175.97,4.72874915]
[1747584389554,5.6791,176.03,175.99,5.68]
[1747584389753,133.12,176.05,175.97,4.72874915]
[1747584390360,133.12,176.05,175.96,68.4546]
[1747584390658,138.7983,176.05,176.01,5.6795]
[1747584390958,133.12,176.05,175.96,68.4546]
[1747584391162,66.56,176.05,175.96,68.4546]
[1747584391361,11.3502,176.15,175.96,68.4546]
[1747584391656,133.12,176.14,175.96,68.4546]
[1747584391858,66.54,176.13,175.96,68.4546]
[1747584392053,66.54,176.13,175.99,16.27104461]
[1747584392255,66.54,176.13,176.0,66.54]
[1747584392460,66.54,176.13,176.01,68.4837]
[1747584392655,490.68,176.17,176.01,68.4837]
[1747584392859,490.68,176.17,176.02,1.903]
[1747584393066,133.12,176.16,176.02,1.903]
[1747584393255,5.6757,176.13,176.02,1.903]
[1747584393553,133.1,176.16,176.02,1.903]
[1747584393964,5.6761,176.12,176.08,5.6771]
[1747584394262,5.6761,176.12,176.02,1.903]
[1747584394263,133.1,176.16,176.02,1.903]
[1747584394760,133.1,176.16,176.03,4.72199183]
[1747584395155,133.1,176.16,176.04,1.8109]
[1747584395359,5.6751,176.15,176.05,66.52]
[1747584395555,5.6751,176.15,176.06,66.58]
[1747584396462,5.6754,176.14,176.1,5.6763]
[1747584396761,133.1,176.16,176.06,66.58]
[1747584397063,5.6752,176.15,176.11,5.6761]
[1747584397457,5.6752,176.15,176.07,4.72128098]
[1747584397761,66.58,176.16,176.07,4.72128098]
[1747584398259,66.58,176.16,176.07,10.39878098]
[1747584398867,5.6764,176.11,176.07,10.39878098]
[1747584399067,5.6764,176.11,176.07,5.6775]
[1747584399263,66.48,176.12,176.04,1.8109]
[1747584399463,72.1562,176.12,176.04,1.8109]
[1747584400166,66.48,176.12,176.04,1.8109]
[1747584400662,66.48,176.12,176.06,5.6779]
[1747584401062,5.6767,176.1,176.06,5.6779]
[1747584401566,5.677,176.09,176.05,5.6782]
[1747584401767,66.48,176.12,176.04,1.8109]
[1747584402061,5.6765,176.11,176.07,5.6775]
[1747584402266,5.6765,176.11,176.04,1.8109]
[1747584402267,66.48,176.12,176.04,1.8109]
[1747584402468,66.48,176.12,176.02,68.483]
[1747584402767,66.58,176.11,176.02,68.483]
[1747584403168,5.6772,176.09,176.02,68.483]
[1747584403462,66.58,176.11,176.02,66.58]
[1747584403760,66.58,176.11,175.99,492.7994]
[1747584403761,5.6779,176.07,175.99,492.7994]
[1747584404568,5.6779,176.07,176.04,5.6785]
[1747584404761,5.6779,176.06,175.99,492.7994]
[1747584405162,66.58,176.11,176.0,4.73121374]
[1747584405461,66.58,176.11,176.02,5.6791]
[1747584405770,66.58,176.11,176.0,4.73121374]
[1747584406269,5.6779,176.06,176.0,4.73121374]
[1747584406571,66.42,176.07,176.0,4.73121374]
[1747584407069,72.0979,176.07,176.03,5.6788]
[1747584407570,5.678,176.06,176.03,5.6788]
[1747584408176,5.678,176.06,176.02,5.6791]
[1747584408967,5.6783,176.05,176.01,5.6795]
[1747584409273,66.42,176.07,175.99,1.9594]
[1747584409764,5.6783,176.05,176.01,5.6793]
[1747584410171,5.678,176.06,176.02,5.6791]
[1747584410772,5.6783,176.05,176.01,5.6795]
[1747584411070,66.42,176.07,175.99,1.9594]
[1747584411368,5.678,176.06,175.99,1.9594]
[1747584411569,66.38,176.09,175.99,1.9594]
[1747584411767,5.677,176.09,175.99,12.19119314]
[1747584412067,132.96,176.11,175.99,12.19119314]
[1747584412264,138.6365,176.11,176.0,4.73133237]
[1747584412465,132.96,176.11,176.0,4.73133237]
[1747584412771,5.6773,176.08,176.0,4.73133237]
[1747584412975,132.96,176.11,176.0,4.73133237]
[1747584413376,5.6767,176.1,176.06,5.6777]
[1747584413875,132.96,176.11,176.01,4.73133237]
[1747584414174,5.6774,176.08,176.05,5.6781]
[1747584414776,5.6774,176.08,176.02,66.36]
[1747584414977,132.96,176.11,176.02,66.36]
[1747584415175,132.96,176.11,175.99,12.19119314]
[1747584415376,132.96,176.11,176.03,5.6786]
[1747584415579,5.6782,176.06,175.99,1.9594]
[1747584416578,5.6782,176.06,176.03,5.6789]
[1747584416774,5.6783,176.05,176.0,4.74357897]
[1747584417171,132.96,176.11,176.0,4.74357897]
[1747584417373,5.6774,176.08,176.0,4.74357897]
[1747584417666,132.96,176.11,176.0,4.74357897]
[1747584417869,66.58,176.11,176.01,4.74357897]
[1747584418276,66.58,176.11,176.06,5.6777]
[1747584418977,5.6767,176.1,176.06,5.6777]
[1747584420281,5.677,176.09,176.06,5.6777]
[1747584420481,66.58,176.11,176.05,5.6782]
[1747584420776,5.6767,176.1,176.01,5.14704638]
[1747584420977,66.58,176.11,176.01,5.14704638]
[1747584421477,5.677,176.09,176.06,5.6779]
[1747584421678,66.58,176.11,176.01,5.14704638]
[1747584422280,490.68,176.17,176.02,10.23179314]
[1747584422475,66.34,176.17,176.05,10.23179314]
[1747584422680,66.34,176.17,176.08,10.23179314]
[1747584422882,66.34,176.17,176.08,142.87179314]
[1747584423278,66.34,176.17,176.08,132.64]
[1747584423483,86.57880856,176.18,176.08,142.87179314]
[1747584423684,86.57880856,176.18,176.08,132.64]
[1747584424083,86.57880856,176.18,176.09,4.7448934]
[1747584424283,86.57880856,176.18,176.15,5.6748]
[1747584424971,92.25290856,176.18,176.15,5.6748]
[1747584425273,132.62,176.21,176.08,132.64]
[1747584425784,66.34,176.21,176.08,132.64]
[1747584425982,66.34,176.21,176.18,5.6738]
[1747584426479,66.34,176.21,176.15,5.6747]
[1747584426681,66.34,176.21,176.13,132.6]
[1747584427086,66.34,176.21,176.13,66.34]
[1747584427482,66.34,176.21,176.12,5.6759]
[1747584427981,5.6749,176.16,176.12,5.6759]
[1747584428177,66.24,176.17,176.07,6.96764638]
[1747584428377,66.34,176.16,176.07,6.96764638]
[1747584428576,66.34,176.16,176.12,5.6759]
[1747584428778,66.34,176.16,176.07,6.96764638]
[1747584429185,66.34,176.16,176.09,5.6767]
[1747584429390,66.34,176.16,176.07,6.96764638]
[1747584429591,5.6762,176.12,176.07,6.96764638]
[1747584429787,5.6762,176.12,176.08,5.677]
[1747584430591,5.6764,176.11,176.07,10.82454638]
[1747584431089,5.6764,176.11,176.06,66.34]
[1747584431090,5.6764,176.11,176.08,5.6773]
[1747584431790,66.34,176.16,176.09,5.6769]
[1747584432592,66.34,176.16,176.08,5.6772]
[1747584432886,66.34,176.16,176.06,66.34]
[1747584433091,5.6761,176.12,176.08,5.6772]
[1747584433392,66.34,176.16,176.06,66.34]
[1747584433684,66.34,176.16,176.08,5.6771]
[1747584433889,66.34,176.16,176.06,66.34]
[1747584434586,5.6767,176.1,176.06,66.34]
[1747584434892,66.2,176.12,176.05,5.678]
[1747584435191,66.32,176.11,176.03,1.838]
[1747584435390,66.32,176.11,176.06,5.6779]
[1747584435789,66.32,176.11,176.03,1.838]
[1747584435992,66.32,176.11,176.04,5.6785]
[1747584436293,5.6772,176.09,176.03,1.838]
[1747584436692,66.32,176.11,176.03,1.838]
[1747584436885,66.32,176.11,176.02,68.2364]
[1747584437689,5.6769,176.1,176.02,68.2364]
[1747584437889,66.32,176.11,176.02,68.2364]
[1747584438396,5.6766,176.1,176.06,5.6777]
[1747584438895,5.677,176.09,176.05,5.6782]
[1747584439392,66.32,176.11,176.03,10.41477463]
[1747584439595,66.32,176.11,176.03,4.73607463]
[1747584440195,66.32,176.11,176.02,68.2364]
[1747584440396,490.74,176.18,176.02,68.2364]
[1747584440603,5.6754,176.14,176.02,68.2364]
[1747584441095,5.6754,176.14,176.1,5.6766]
[1747584441495,66.34,176.15,176.05,66.16]
[1747584441791,66.34,176.15,176.06,1.8304]
[1747584442093,66.34,176.15,176.13,5.6755]
[1747584442284,66.34,176.15,176.07,68.2357]
[1747584442690,66.34,176.15,176.13,5.6756]
[1747584442896,556.88,176.18,176.13,5.6756]
[1747584443395,5.6747,176.16,176.13,5.6756]
[1747584443596,556.88,176.18,176.07,72.98116176]
[1747584443791,66.14,176.18,176.07,72.98116176]
[1747584444001,71.8143,176.18,176.07,72.98116176]
[1747584444295,66.14,176.18,176.08,4.74546176]
[1747584444493,5.6745,176.17,176.08,4.74546176]
[1747584444889,66.14,176.18,176.08,4.74546176]
[1747584445086,5.6749,176.16,176.12,5.6757]
[1747584445590,5.6749,176.16,176.08,4.74546176]
[1747584445798,66.14,176.18,176.08,4.74546176]
[1747584446394,5.6747,176.17,176.14,5.6753]
[1747584446594,66.14,176.18,176.09,4.74546176]
[1747584446789,5.6741,176.18,176.15,5.6748]
[1747584447296,66.34,176.19,176.1,67.9134]
[1747584448388,72.0138,176.19,176.1,67.9134]
[1747584448590,66.34,176.19,176.1,67.9134]
[1747584448891,72.0138,176.19,176.15,5.6747]
[1747584449085,72.0138,176.19,176.11,4.74260443]
[1747584449997,66.34,176.19,176.11,4.74260443]
[1747584450496,66.34,176.19,176.12,4.74260443]
[1747584452001,5.6746,176.17,176.13,5.6754]
[1747584452388,66.34,176.19,176.1,1.8134]
[1747584452590,5.6741,176.18,176.1,1.8134]
[1747584452794,66.34,176.19,176.1,1.8134]
[1747584452993,72.014,176.19,176.15,5.6748]
[1747584453396,66.34,176.19,176.1,1.8134]
[1747584453596,5.6742,176.18,176.14,5.6751]
[1747584453793,132.14,176.2,176.11,4.74218664]
[1747584454100,5.6738,176.19,176.11,4.74218664]
[1747584454799,5.6741,176.18,176.15,5.6748]
[1747584455102,132.14,176.2,176.11,4.74218664]
[1747584455404,132.14,176.2,176.17,5.6742]
[1747584455793,66.1,176.2,176.17,5.6742]
[1747584456195,71.7734,176.2,176.17,5.6742]
[1747584457101,71.7734,176.2,176.16,5.6746]
[1747584457296,66.1,176.2,176.16,5.6746]
[1747584457506,5.6738,176.19,176.13,1.8423]
[1747584457801,66.1,176.2,176.13,1.8423]
[1747584458304,66.1,176.2,176.15,5.6748]
[1747584458501,66.1,176.2,176.13,1.8423]
[1747584458703,66.1,176.2,176.13,5.6757]
[1747584458904,66.1,176.2,176.12,66.1]
[1747584459102,5.6746,176.17,176.12,66.1]
[1747584459303,66.1,176.2,176.13,5.6756]
[1747584459701,5.6746,176.17,176.13,5.6756]
[1747584460301,5.6748,176.16,176.13,5.6756]
[1747584460505,5.6748,176.16,176.12,66.1]
[1747584461505,5.6751,176.15,176.1,1.8134]
[1747584462607,5.6751,176.15,176.12,5.6759]
[1747584463512,5.6754,176.14,176.11,5.6762]
[1747584463813,5.6754,176.14,176.08,67.9778]
[1747584464714,5.6751,176.15,176.08,67.9778]
[1747584465205,10.21779406,176.24,176.08,67.9778]
[1747584465406,132.06,176.23,176.09,10.21779406]
[1747584465912,66.1,176.23,176.09,10.21779406]
[1747584466115,66.1,176.23,176.12,10.21779406]
[1747584466417,66.1,176.23,176.13,133.84]
[1747584466712,5.6732,176.21,176.17,5.6742]
[1747584467112,5.6732,176.21,176.18,5.674]
[1747584467413,5.6729,176.22,176.13,133.84]
[1747584467915,5.6731,176.21,176.18,5.6738]
[1747584468613,5.6729,176.22,176.19,5.6736]
[1747584469113,5.6729,176.22,176.14,4.75005352]
[1747584469308,5.6729,176.22,176.18,5.6738]
[1747584469816,66.1,176.23,176.15,4.75005352]
[1747584470013,10.21779406,176.21,176.15,4.75005352]
[1747584470209,5.6747,176.16,176.15,4.75005352]
[1747584471217,131.98,176.17,176.1,5.14704638]
[1747584472616,5.6758,176.13,176.1,10.82354638]
[1747584472818,131.98,176.17,176.1,5.14704638]
[1747584473420,131.98,176.17,176.05,66.08]
[1747584473619,5.6759,176.13,176.09,5.6769]
[1747584473823,131.98,176.17,176.05,66.08]
[1747584474819,5.6751,176.15,176.11,5.6761]
[1747584475021,131.96,176.17,176.07,4.7396121]
[1747584475525,5.6738,176.19,176.15,5.6748]
[1747584475823,131.98,176.21,176.1,131.98]
[1747584475824,131.96,176.21,176.1,131.98]
[1747584476025,5.6735,176.2,176.11,3.8362]
[1747584476323,131.96,176.21,176.11,8.5758121]
[1747584476522,148.31926614,176.21,176.11,4.7396121]
[1747584476720,5.676,176.12,176.11,4.7396121]
[1747584477215,5.6759,176.13,176.11,4.7396121]
[1747584477412,131.72,176.14,176.11,4.7396121]
[1747584477612,131.72,176.14,176.08,5.14704638]
[1747584478817,5.6764,176.11,176.08,5.14704638]
[1747584479230,131.72,176.14,176.08,5.14704638]
[1747584479523,5.6767,176.1,176.08,5.14704638]
[1747584479925,5.6767,176.1,176.06,7.5729]
[1747584480725,131.72,176.14,176.06,1.8952]
[1747584481429,65.86,176.14,176.06,1.8952]
[1747584482022,5.6764,176.11,176.07,5.6773]
[1747584482220,65.86,176.14,176.06,1.8952]
[1747584482818,5.6757,176.13,176.06,1.8952]
[1747584483329,5.6757,176.13,176.1,5.6766]
[1747584483530,65.86,176.14,176.1,5.6766]
[1747584483727,65.82,176.17,176.07,131.68]
[1747584483924,5.6761,176.12,176.08,5.677]
[1747584485128,65.82,176.17,176.08,5.677]
[1747584485319,65.82,176.17,176.07,131.68]
[1747584485320,5.6764,176.11,176.07,5.6775]
[1747584485521,65.82,176.17,176.06,1.8952]
[1747584485932,5.6757,176.13,176.09,5.6769]
[1747584486134,65.82,176.17,176.06,1.8952]
[1747584486730,65.82,176.17,176.08,5.6771]
[1747584487232,5.677,176.09,176.06,1.8952]
[1747584487437,5.677,176.09,176.05,5.6782]
[1747584487731,65.78,176.12,176.04,65.86]
[1747584488528,65.78,176.12,176.01,8.98324638]
[1747584489037,5.6772,176.09,176.04,5.6784]
[1747584489425,5.6772,176.09,176.05,5.6781]
[1747584489724,65.78,176.12,176.01,8.98324638]
[1747584489932,65.78,176.12,176.02,4.73989538]
[1747584490534,5.6773,176.09,176.02,4.73989538]
[1747584490830,65.78,176.12,176.02,4.73989538]
[1747584491031,65.78,176.12,176.01,3.8362]
[1747584491726,5.6769,176.1,176.06,5.6778]
[1747584491930,65.78,176.12,176.01,3.8362]
[1747584492532,5.6767,176.1,176.07,5.6776]
[1747584492735,65.78,176.12,176.01,3.8362]
[1747584492931,5.677,176.09,176.06,5.6779]
[1747584493238,65.78,176.12,176.06,5.6779]
[1747584493437,65.78,176.12,176.01,3.8362]
[1747584494034,5.6767,176.1,176.07,5.6774]
[1747584494334,65.78,176.12,176.07,5.6774]
[1747584494541,5.6766,176.1,176.07,5.6774]
[1747584494738,65.78,176.12,176.07,5.6774]
[1747584495034,65.78,176.12,176.08,5.6772]
[1747584495240,71.4561,176.12,176.01,3.8362]
[1747584495536,65.86,176.13,176.1,5.6766]
[1747584495944,65.86,176.13,176.02,146.56342529]
[1747584496238,65.86,176.13,176.09,5.6769]
[1747584496544,65.86,176.13,176.02,136.33602522]
[1747584496933,5.6764,176.11,176.03,4.73602522]
[1747584497135,5.6764,176.11,176.07,5.6774]
[1747584497540,65.86,176.13,176.03,4.73602522]
[1747584498839,65.86,176.13,176.02,131.58]
[1747584499644,5.6768,176.1,176.02,131.58]
[1747584500242,5.6764,176.11,176.07,5.6774]
[1747584500540,5.6764,176.11,176.02,131.58]
[1747584500842,76.10740007,176.16,176.02,141.80740007]
[1747584501030,141.78740007,176.16,176.02,141.80740007]
[1747584501343,5.6757,176.13,176.02,141.80740007]
[1747584501841,5.6757,176.13,176.09,5.6767]
[1747584502041,5.6761,176.12,176.09,5.6767]
[1747584502738,10.22740007,176.13,176.03,4.74113753]
[1747584503330,5.6769,176.1,176.06,5.6777]
[1747584504145,5.677,176.09,176.05,5.6782]
[1747584505041,65.64,176.1,176.04,5.6785]